fUSD/lending_fUSD_20250103
["ID","MTS","AMOUNT","RATE_DAILY","PERIOD"]
[347491183,1735873845862,-500.0,9.762e-05,2]
[347491185,1735873845872,-500.0,9.762e-05,2]
[347491188,1735873845881,-500.0,9.762e-05,2]
[347491190,1735873845890,-500.0,9.762e-05,2]
[347491192,1735873845899,-557.72,9.762e-05,2]
[347491194,1735873845908,-500.0,9.762e-05,2]
[347491196,1735873845917,-653.84,9.762e-05,2]
[347491220,1735873846127,-500.0,9.762e-05,2]
[347491223,1735873846170,-1861.43,9.762e-05,2]
[347491225,1735873846180,-679.0,9.762e-05,2]
[347491227,1735873846191,-500.0,9.762e-05,2]
[347491229,1735873846200,-500.0,9.762e-05,2]
[347491231,1735873846209,-8207.5,9.762e-05,2]
[347491233,1735873846219,-1173.01,9.762e-05,2]
[347491235,1735873846229,-500.0,9.762e-05,2]
[347491237,1735873846239,-500.0,9.762e-05,2]
[347491239,1735873846249,-2580.05,9.762e-05,2]
[347491241,1735873846257,-500.0,9.762e-05,2]
[347491243,1735873846266,-500.0,9.762e-05,2]
[347491245,1735873846275,-1888.58,9.762e-05,2]
[347491247,1735873846285,-500.0,9.762e-05,2]
[347491249,1735873846296,-721.51,9.762e-05,2]
[347491251,1735873846305,-500.0,9.762e-05,2]
[347491253,1735873846314,-593.72,9.762e-05,2]
[347491255,1735873846323,-500.0,9.762e-05,2]
[347491257,1735873846332,-2583.14,9.762e-05,2]
[347491259,1735873846342,-500.0,9.762e-05,2]
[347491261,1735873846351,-1193.31,9.762e-05,2]
[347491263,1735873846360,-1748.82,9.762e-05,2]
[347491265,1735873846369,-500.0,9.762e-05,2]
[347491267,1735873846378,-500.0,9.762e-05,2]
[347491268,1735873846387,-500.0,9.762e-05,2]
[347491270,1735873846397,-500.0,9.762e-05,2]
[347491272,1735873846406,-500.0,9.762e-05,2]
[347491274,1735873846415,-500.0,9.762e-05,2]
[347491276,1735873846424,-725.42,9.762e-05,2]
[347491278,1735873846433,-1745.75,9.762e-05,2]
[347491280,1735873846441,-1304.34,9.762e-05,2]
[347491282,1735873846450,-1096.01,9.762e-05,2]
[347491284,1735873846459,-500.0,9.762e-05,2]
[347491286,1735873846468,-6459.3,9.762e-05,2]
[347491288,1735873846477,-500.0,9.762e-05,2]
[347491290,1735873846486,-500.0,9.762e-05,2]
[347491292,1735873846494,-1548.59,9.762e-05,2]
[347491294,1735873846503,-500.0,9.762e-05,2]
[347491296,1735873846512,-500.0,9.762e-05,2]
[347491298,1735873846521,-500.0,9.762e-05,2]
[347491300,1735873846530,-500.0,9.762e-05,2]
[347491302,1735873846540,-904.16,9.762e-05,2]
[347491304,1735873846549,-500.0,9.762e-05,2]
[347491306,1735873846558,-1434.28,9.762e-05,2]
[347491308,1735873846567,-1158.9,9.762e-05,2]
[347491310,1735873846576,-3392.55,9.762e-05,2]
[347491312,1735873846585,-500.0,9.762e-05,2]
[347491314,1735873846595,-609.55,9.762e-05,2]
[347491316,1735873846603,-3954.01,9.762e-05,2]
[347491318,1735873846613,-500.0,9.762e-05,2]
[347491320,1735873846622,-500.0,9.762e-05,2]
[347491322,1735873846631,-500.0,9.762e-05,2]
[347491324,1735873846639,-9071.46,9.762e-05,2]
[347491326,1735873846648,-500.0,9.762e-05,2]
[347491328,1735873846657,-500.0,9.762e-05,2]
[347491330,1735873846666,-2208.24,9.762e-05,2]
[347491331,1735873846676,-500.0,9.762e-05,2]
[347491333,1735873846685,-820.27,9.762e-05,2]
[347491335,1735873846694,-500.0,9.762e-05,2]
[347491337,1735873846703,-1132.36,9.762e-05,2]
[347491339,1735873846712,-500.0,9.762e-05,2]
[347491341,1735873846721,-500.0,9.762e-05,2]
[347491343,1735873846730,-7399.03,9.762e-05,2]
[347491345,1735873846739,-500.0,9.762e-05,2]
[347491347,1735873846748,-500.0,9.762e-05,2]
[347491349,1735873846757,-4669.46,9.762e-05,2]
[347491351,1735873846766,-1753.57,9.762e-05,2]
[347491353,1735873846775,-920.51,9.762e-05,2]
[347491355,1735873846784,-500.0,9.762e-05,2]
[347491357,1735873846795,-930.01,9.762e-05,2]
[347491359,1735873846804,-500.0,9.762e-05,2]
[347491361,1735873846814,-2587.9,9.762e-05,2]
[347491363,1735873846823,-326.65144547,9.762e-05,2]
[347491365,1735873846832,-500.0,9.762e-05,2]
[347491367,1735873846840,-500.0,9.762e-05,2]
[347491369,1735873846849,-500.0,9.762e-05,2]
[347491371,1735873846858,-8268.11,9.762e-05,2]
[347491373,1735873846867,-500.0,9.762e-05,2]
[347491375,1735873846877,-500.0,9.762e-05,2]
[347491377,1735873846885,-500.0,9.762e-05,2]
[347491379,1735873846894,-943.68,9.762e-05,2]
[347491381,1735873846903,-500.0,9.762e-05,2]
[347491383,1735873846912,-500.0,9.762e-05,2]
[347491384,1735873846921,-500.0,9.762e-05,2]
[347491386,1735873846930,-500.0,9.762e-05,2]
[347491388,1735873846939,-500.0,9.762e-05,2]
[347491390,1735873846948,-1115.46,9.762e-05,2]
[347491392,1735873846957,-1547.57,9.762e-05,2]
[347491394,1735873846965,-500.0,9.762e-05,2]
[347491396,1735873846973,-28502.31,9.762e-05,2]
[347491398,1735873846982,-500.0,9.762e-05,2]
[347491400,1735873846991,-500.0,9.762e-05,2]
[347491402,1735873847000,-500.0,9.762e-05,2]
[347491404,1735873847009,-500.0,9.762e-05,2]
[347491406,1735873847018,-500.0,9.762e-05,2]
[347491408,1735873847027,-3654.95,9.762e-05,2]
[347491410,1735873847035,-500.0,9.762e-05,2]
[347491412,1735873847045,-1071.11,9.762e-05,2]
[347491414,1735873847054,-500.0,9.762e-05,2]
[347491416,1735873847065,-500.0,9.762e-05,2]
[347491418,1735873847075,-500.0,9.762e-05,2]
[347491420,1735873847084,-5196.49,9.762e-05,2]
[347491422,1735873847093,-2433.91,9.762e-05,2]
[347491424,1735873847102,-1415.58,9.762e-05,2]
[347491426,1735873847111,-500.0,9.762e-05,2]
[347491428,1735873847120,-500.0,9.762e-05,2]
[347491430,1735873847130,-3445.2,9.762e-05,2]
[347491432,1735873847139,-500.0,9.762e-05,2]
[347491434,1735873847151,-500.80304192,9.762e-05,2]
[347491436,1735873847160,-2568.33,9.762e-05,2]
[347491438,1735873847169,-500.0,9.762e-05,2]
[347491440,1735873847179,-2143.65,9.762e-05,2]
[347491442,1735873847187,-500.0,9.762e-05,2]
[347491444,1735873847196,-500.0,9.762e-05,2]
[347491446,1735873847205,-500.0,9.762e-05,2]
[347491448,1735873847215,-1435.5,9.762e-05,2]
[347491450,1735873847224,-2275.54,9.762e-05,2]
[347491452,1735873847233,-812.49,9.762e-05,2]
[347491453,1735873847242,-500.0,9.762e-05,2]
[347491455,1735873847251,-2187.14,9.762e-05,2]
[347491457,1735873847260,-500.0,9.762e-05,2]
[347491459,1735873847269,-500.0,9.762e-05,2]
[347491461,1735873847278,-500.0,9.762e-05,2]
[347491463,1735873847287,-500.0,9.762e-05,2]
[347491465,1735873847297,-500.0,9.762e-05,2]
[347491467,1735873847306,-1138.63,9.762e-05,2]
[347491469,1735873847315,-500.0,9.762e-05,2]
[347491471,1735873847324,-1004.33,9.762e-05,2]
[347491473,1735873847333,-500.0,9.762e-05,2]
[347491475,1735873847343,-3599.7,9.762e-05,2]
[347491477,1735873847352,-658.78,9.762e-05,2]
[347491479,1735873847361,-500.0,9.762e-05,2]
[347491481,1735873847370,-500.0,9.762e-05,2]
[347491483,1735873847379,-500.0,9.762e-05,2]
[347491485,1735873847388,-500.0,9.762e-05,2]
[347491487,1735873847397,-500.0,9.762e-05,2]
[347491489,1735873847406,-500.0,9.762e-05,2]
[347491491,1735873847415,-1247.03,9.762e-05,2]
[347491493,1735873847424,-500.0,9.762e-05,2]
[347491495,1735873847434,-965.27,9.762e-05,2]
[347491496,1735873847443,-500.0,9.762e-05,2]
[347491498,1735873847452,-824.67,9.762e-05,2]
[347491500,1735873847462,-2395.1,9.762e-05,2]
[347491502,1735873847471,-2292.32,9.762e-05,2]
[347491504,1735873847480,-504.95817072,9.762e-05,2]
[347491506,1735873847489,-5534.41,9.762e-05,2]
[347491508,1735873847498,-500.0,9.762e-05,2]
[347491510,1735873847507,-500.0,9.762e-05,2]
[347491512,1735873847517,-500.0,9.762e-05,2]
[347491514,1735873847527,-500.0,9.762e-05,2]
[347491516,1735873847536,-549.06,9.762e-05,2]
[347491518,1735873847547,-500.0,9.762e-05,2]
[347491520,1735873847556,-500.0,9.762e-05,2]
[347491522,1735873847566,-500.0,9.762e-05,2]
[347491524,1735873847575,-678.69,9.762e-05,2]
[347491526,1735873847584,-2272.71,9.762e-05,2]
[347491528,1735873847593,-500.0,9.762e-05,2]
[347491530,1735873847603,-1042.68,9.762e-05,2]
[347491532,1735873847612,-500.0,9.762e-05,2]
[347491534,1735873847622,-2492.57,9.762e-05,2]
[347491536,1735873847631,-3161.28,9.762e-05,2]
[347491538,1735873847640,-500.0,9.762e-05,2]
[347491540,1735873847650,-500.0,9.762e-05,2]
[347491542,1735873847659,-739.03,9.762e-05,2]
[347491544,1735873847668,-353.23173824,9.762e-05,2]
[347491545,1735873847677,-500.0,9.762e-05,2]
[347491547,1735873847687,-3479.33,9.762e-05,2]
[347491549,1735873847696,-500.0,9.762e-05,2]
[347491551,1735873847705,-10490.24,9.762e-05,2]
[347491553,1735873847715,-500.0,9.762e-05,2]
[347491555,1735873847724,-500.0,9.762e-05,2]
[347491557,1735873847734,-1846.92,9.762e-05,2]
[347491559,1735873847742,-941.51,9.762e-05,2]
[347491561,1735873847752,-500.0,9.762e-05,2]
[347491563,1735873847761,-500.0,9.762e-05,2]
[347491565,1735873847770,-500.0,9.762e-05,2]
[347491567,1735873847779,-508.05,9.762e-05,2]
[347491569,1735873847788,-1926.98,9.762e-05,2]
[347491571,1735873847798,-500.0,9.762e-05,2]
[347491573,1735873847807,-500.0,9.762e-05,2]
[347491575,1735873847816,-502.18103202,9.762e-05,2]
[347491577,1735873847825,-500.0,9.762e-05,2]
[347491579,1735873847835,-500.0,9.762e-05,2]
[347491581,1735873847844,-3683.61,9.762e-05,2]
[347491583,1735873847854,-1320.17,9.762e-05,2]
[347491584,1735873847864,-500.0,9.762e-05,2]
[347491586,1735873847873,-727.78,9.762e-05,2]
[347491587,1735873847881,-500.0,9.762e-05,2]
[347491588,1735873847891,-2480.26,9.762e-05,2]
[347491589,1735873847899,-384.85019834,9.762e-05,2]
[347491590,1735873847909,-500.0,9.762e-05,2]
[347491591,1735873847917,-500.0,9.762e-05,2]
[347491592,1735873847926,-500.0,9.762e-05,2]
[347491593,1735873847935,-500.0,9.762e-05,2]
[347491594,1735873847944,-1866.24,9.762e-05,2]
[347491595,1735873847952,-500.0,9.762e-05,2]
[347491596,1735873847961,-500.0,9.762e-05,2]
[347491597,1735873847970,-1457.86,9.762e-05,2]
[347491598,1735873847979,-500.0,9.762e-05,2]
[347491599,1735873847988,-500.0,9.762e-05,2]
[347491601,1735873847997,-1189.07,9.762e-05,2]
[347491603,1735873848007,-500.0,9.762e-05,2]
[347491605,1735873848017,-17075.43,9.762e-05,2]
[347491607,1735873848026,-500.0,9.762e-05,2]
[347491609,1735873848035,-500.0,9.762e-05,2]
[347491611,1735873848045,-500.0,9.762e-05,2]
[347491613,1735873848054,-500.0,9.762e-05,2]
[347491615,1735873848063,-500.0,9.762e-05,2]
[347491617,1735873848072,-500.0,9.762e-05,2]
[347491619,1735873848081,-2096.8,9.762e-05,2]
[347491621,1735873848090,-500.0,9.762e-05,2]
[347491622,1735873848100,-3985.97,9.762e-05,2]
[347491625,1735873848110,-500.0,9.762e-05,2]
[347491627,1735873848119,-500.0,9.762e-05,2]
[347491628,1735873848128,-500.0,9.762e-05,2]
[347491630,1735873848141,-500.0,9.762e-05,2]
[347491632,1735873848151,-1795.18,9.762e-05,2]
[347491634,1735873848160,-500.0,9.762e-05,2]
[347491636,1735873848170,-1003.06,9.762e-05,2]
[347491638,1735873848180,-1429.35,9.762e-05,2]
[347491640,1735873848190,-500.0,9.762e-05,2]
[347491642,1735873848199,-500.0,9.762e-05,2]
[347491644,1735873848208,-560.2,9.762e-05,2]
[347491646,1735873848219,-500.0,9.762e-05,2]
[347491648,1735873848229,-3461.6,9.762e-05,2]
[347491650,1735873848238,-18799.71,9.762e-05,2]
[347491652,1735873848248,-10576.76,9.762e-05,2]
[347491654,1735873848257,-500.0,9.762e-05,2]
[347491656,1735873848266,-500.0,9.762e-05,2]
[347491658,1735873848276,-4435.94,9.762e-05,2]
[347491660,1735873848285,-1094.76,9.762e-05,2]
[347491662,1735873848296,-500.0,9.762e-05,2]
[347491664,1735873848305,-500.0,9.762e-05,2]
[347491666,1735873848315,-500.0,9.762e-05,2]
[347491668,1735873848324,-4098.68,9.762e-05,2]
[347491670,1735873848333,-500.0,9.762e-05,2]
[347491672,1735873848343,-3118.26,9.762e-05,2]
[347491674,1735873848352,-10821.18,9.762e-05,2]
[347491676,1735873848361,-500.0,9.762e-05,2]
[347491678,1735873848370,-500.0,9.762e-05,2]
[347491680,1735873848380,-500.0,9.762e-05,2]
[347491682,1735873848389,-500.0,9.762e-05,2]
[347491684,1735873848400,-402.86909093,9.762e-05,2]
[347491686,1735873848409,-525.63,9.762e-05,2]
[347491688,1735873848418,-500.0,9.762e-05,2]
[347491690,1735873848428,-500.0,9.762e-05,2]
[347491692,1735873848437,-500.0,9.762e-05,2]
[347491694,1735873848447,-504.7,9.762e-05,2]
[347491696,1735873848456,-508.84,9.762e-05,2]
[347491698,1735873848466,-507.48,9.762e-05,2]
[347491700,1735873848475,-497.57,9.762e-05,2]
[347491702,1735873848485,-496.14,9.763e-05,2]
[347491704,1735873848494,-491.65,9.763e-05,2]
[347491706,1735873848503,-157.118634,9.763e-05,2]
[347491708,1735873848513,-3942.09,9.763e-05,2]
[347491710,1735873848522,-500.0,9.763e-05,2]
[347491712,1735873848531,-500.0,9.763e-05,2]
[347491714,1735873848541,-500.0,9.763e-05,2]
[347491716,1735873848550,-2241.23,9.763e-05,2]
[347491718,1735873848559,-500.0,9.763e-05,2]
[347491720,1735873848569,-500.0,9.763e-05,2]
[347491722,1735873848580,-950.06,9.763e-05,2]
[347491724,1735873848589,-2725.71,9.763e-05,2]
[347491726,1735873848597,-3550.47,9.763e-05,2]
[347491727,1735873848606,-2135.53,9.763e-05,2]
[347491730,1735873848617,-745.37,9.763e-05,2]
[347491731,1735873848626,-500.0,9.763e-05,2]
[347491733,1735873848636,-2066.1,9.763e-05,2]
[347491735,1735873848645,-1036.65,9.763e-05,2]
[347491737,1735873848654,-2893.27,9.763e-05,2]
[347491739,1735873848663,-500.0,9.763e-05,2]
[347491741,1735873848673,-500.0,9.763e-05,2]
[347491743,1735873848682,-500.0,9.763e-05,2]
[347491745,1735873848691,-500.0,9.763e-05,2]
[347491747,1735873848700,-3331.67,9.763e-05,2]
[347491749,1735873848709,-500.0,9.763e-05,2]
[347491751,1735873848718,-1685.05,9.763e-05,2]
[347491753,1735873848728,-2524.35,9.763e-05,2]
[347491755,1735873848737,-2436.75,9.763e-05,2]
[347491757,1735873848747,-2418.21,9.763e-05,2]
[347491759,1735873848756,-1424.13,9.763e-05,2]
[347491761,1735873848765,-500.0,9.763e-05,2]
[347491763,1735873848774,-2983.08,9.763e-05,2]
[347491766,1735873848784,-2029.83,9.763e-05,2]
[347491767,1735873848794,-500.0,9.763e-05,2]
[347491769,1735873848803,-673.12056475,9.763e-05,2]
[347491773,1735873848824,-417.51046773,9.763e-05,2]
[347491775,1735873848835,-315.07896752,9.763e-05,2]
[347491777,1735873848845,-500.0,9.763e-05,2]
[347491779,1735873848854,-971.38116273,9.763e-05,2]
[347491781,1735873848865,-901.14883727,9.763e-05,2]
[347491783,1735873848874,-291.05822273,9.763e-05,2]
[347491800,1735873849022,-208.94177727,9.763e-05,2]
[347491802,1735873849031,-156.77319613,9.763e-05,2]
[347491974,1735873850651,-500.0,9.762e-05,2]
[347491976,1735873850660,-1362.57359483,9.763e-05,2]
[347491979,1735873850672,-849.14320904,9.763e-05,2]
[347491981,1735873850682,-1388.15451483,9.763e-05,2]
[347491983,1735873850693,-1453.38548517,9.763e-05,2]
[347491985,1735873850702,-500.0,9.763e-05,2]
[347491987,1735873850711,-1644.02,9.763e-05,2]
[347491989,1735873850721,-1604.99,9.763e-05,2]
[347491991,1735873850731,-1930.0,9.763e-05,2]
[347491993,1735873850740,-2963.1,9.763e-05,2]
[347491995,1735873850750,-414.30290086,9.763e-05,2]
[347491997,1735873850760,-500.0,9.763e-05,2]
[347491999,1735873850769,-1573.87,9.763e-05,2]
[347492001,1735873850778,-1693.43,9.763e-05,2]
[347492003,1735873850787,-500.0,9.763e-05,2]
[347492005,1735873850798,-500.0,9.763e-05,2]
[347492007,1735873850807,-500.0,9.763e-05,2]
[347492009,1735873850816,-1976.06,9.763e-05,2]
[347492011,1735873850825,-2900.78,9.763e-05,2]
[347492013,1735873850835,-6441.7,9.763e-05,2]
[347492015,1735873850844,-500.0,9.763e-05,2]
[347492017,1735873850853,-1788.6,9.763e-05,2]
[347492018,1735873850862,-1013.04,9.763e-05,2]
[347492019,1735873850871,-3051.15,9.763e-05,2]
[347492020,1735873850880,-3531.08,9.763e-05,2]
[347492021,1735873850889,-9738.15,9.763e-05,2]
[347492022,1735873850898,-1911.4,9.763e-05,2]
[347492023,1735873850906,-500.0,9.763e-05,2]
[347492024,1735873850915,-826.01,9.763e-05,2]
[347492025,1735873850924,-1678.72,9.763e-05,2]
[347492026,1735873850934,-5748.26,9.763e-05,2]
[347492027,1735873850942,-2880.46,9.763e-05,2]
[347492028,1735873850951,-1346.66,9.763e-05,2]
[347492029,1735873850960,-500.0,9.763e-05,2]
[347492030,1735873850969,-1743.40757381,9.763e-05,2]
[347492032,1735873850981,-3461.60000002,9.763e-05,2]
[347492034,1735873850992,-1076.24944658,9.763e-05,2]
[347492036,1735873851003,-407.82269628,9.763e-05,2]
[347492038,1735873851016,-64.69028331,9.763e-05,2]
[347492040,1735873851026,-2036.76,9.763e-05,2]
[347492042,1735873851035,-505.26,9.763e-05,2]
[347492044,1735873851045,-2563.43,9.763e-05,2]
[347492046,1735873851055,-1598.97,9.763e-05,2]
[347492048,1735873851064,-1125.45,9.763e-05,2]
[347492050,1735873851073,-3963.93,9.763e-05,2]
[347492052,1735873851083,-2091.31,9.763e-05,2]
[347492054,1735873851092,-4842.71,9.763e-05,2]
[347492056,1735873851102,-1691.44,9.763e-05,2]
[347492058,1735873851111,-1715.73,9.763e-05,2]
[347492060,1735873851121,-1653.29,9.763e-05,2]
[347492062,1735873851131,-1252.73,9.763e-05,2]
[347492064,1735873851140,-500.0,9.763e-05,2]
[347492066,1735873851152,-500.0,9.763e-05,2]
[347492068,1735873851161,-732.97,9.763e-05,2]
[347492070,1735873851171,-9551.62,9.763e-05,2]
[347492072,1735873851180,-2307.6,9.763e-05,2]
[347492074,1735873851190,-1400.87,9.763e-05,2]
[347492076,1735873851198,-1736.71,9.763e-05,2]
[347492078,1735873851207,-7053.29,9.763e-05,2]
[347492080,1735873851217,-500.0,9.763e-05,2]
[347492082,1735873851226,-500.0,9.763e-05,2]
[347492083,1735873851235,-2180.29,9.763e-05,2]
[347492085,1735873851244,-1000.0,9.763e-05,2]
[347492087,1735873851253,-1000.0,9.763e-05,2]
[347492089,1735873851263,-1000.0,9.763e-05,2]
[347492091,1735873851272,-1000.0,9.763e-05,2]
[347492093,1735873851281,-1000.0,9.763e-05,2]
[347492095,1735873851290,-1000.0,9.763e-05,2]
[347492097,1735873851302,-1000.0,9.763e-05,2]
[347492099,1735873851311,-87.72371669,9.763e-05,2]
[347492102,1735873851323,-912.27628331,9.763e-05,2]
[347492103,1735873851332,-1000.0,9.763e-05,2]
[347492105,1735873851341,-1000.0,9.763e-05,2]
[347492107,1735873851350,-1000.0,9.763e-05,2]
[347492109,1735873851359,-1000.0,9.763e-05,2]
[347492140,1735873851632,-1000.0,9.763e-05,2]
[347492142,1735873851642,-1000.0,9.763e-05,2]
[347492144,1735873851651,-1000.0,9.763e-05,2]
[347492146,1735873851661,-1004.0,9.763e-05,2]
[347492148,1735873851670,-1000.0,9.763e-05,2]
[347492150,1735873851679,-1000.0,9.763e-05,2]
[347492152,1735873851689,-1000.0,9.763e-05,2]
[347492154,1735873851698,-1000.0,9.763e-05,2]
[347492156,1735873851707,-1000.0,9.763e-05,2]
[347492158,1735873851716,-1000.0,9.763e-05,2]
[347492160,1735873851725,-1000.0,9.763e-05,2]
[347492162,1735873851735,-1000.0,9.763e-05,2]
[347492164,1735873851744,-1000.0,9.763e-05,2]
[347492166,1735873851753,-1000.0,9.763e-05,2]
[347492168,1735873851762,-1000.0,9.763e-05,2]
[347492170,1735873851771,-1000.0,9.763e-05,2]
[347492172,1735873851780,-1000.0,9.763e-05,2]
[347492174,1735873851789,-1000.0,9.763e-05,2]
[347492176,1735873851799,-1000.0,9.763e-05,2]
[347492178,1735873851808,-1000.0,9.763e-05,2]
[347492180,1735873851817,-1000.0,9.763e-05,2]
[347492182,1735873851826,-1000.0,9.763e-05,2]
[347492184,1735873851835,-1000.0,9.763e-05,2]
[347492186,1735873851844,-1000.0,9.763e-05,2]
[347492188,1735873851852,-1000.0,9.763e-05,2]
[347492189,1735873851862,-1000.0,9.763e-05,2]
[347492191,1735873851871,-1000.0,9.763e-05,2]
[347492193,1735873851880,-509.14,9.764e-05,2]
[347492195,1735873851889,-1924.48,9.764e-05,2]
[347492197,1735873851898,-1262.42,9.764e-05,2]
[347492199,1735873851907,-500.0,9.764e-05,2]
[347492201,1735873851916,-500.0,9.764e-05,2]
[347492203,1735873851926,-1096.96,9.764e-05,2]
[347492205,1735873851935,-937.35,9.764e-05,2]
[347492207,1735873851945,-500.0,9.764e-05,2]
[347492209,1735873851954,-500.0,9.764e-05,2]
[347492211,1735873851963,-500.0,9.764e-05,2]
[347492213,1735873851972,-500.0,9.764e-05,2]
[347492215,1735873851981,-508.22935685,9.764e-05,2]
[347492217,1735873851990,-500.0,9.764e-05,2]
[347492219,1735873852000,-500.0,9.764e-05,2]
[347492221,1735873852009,-500.0,9.764e-05,2]
[347492223,1735873852018,-547.73,9.764e-05,2]
[347492225,1735873852028,-500.0,9.764e-05,2]
[347492227,1735873852037,-673.76,9.764e-05,2]
[347492229,1735873852047,-525.41,9.764e-05,2]
[347492231,1735873852056,-500.0,9.764e-05,2]
[347492233,1735873852065,-500.0,9.764e-05,2]
[347492235,1735873852074,-500.0,9.764e-05,2]
[347492237,1735873852084,-500.0,9.764e-05,2]
[347492239,1735873852092,-500.0,9.764e-05,2]
[347492241,1735873852101,-500.0,9.764e-05,2]
[347492243,1735873852110,-186.43954592,9.764e-05,2]
[347492245,1735873852119,-500.0,9.764e-05,2]
[347492247,1735873852129,-500.0,9.764e-05,2]
[347492249,1735873852138,-310.64608326,9.764e-05,2]
[347492251,1735873852150,-501.33425627,9.764e-05,2]
[347492253,1735873852159,-903.54,9.764e-05,2]
[347492255,1735873852168,-500.0,9.764e-05,2]
[347492257,1735873852178,-500.0,9.764e-05,2]
[347492259,1735873852187,-500.0,9.764e-05,2]
[347492261,1735873852197,-500.0,9.764e-05,2]
[347492263,1735873852206,-500.0,9.764e-05,2]
[347492265,1735873852215,-500.0,9.764e-05,2]
[347492267,1735873852227,-500.0,9.764e-05,2]
[347492269,1735873852237,-723.52,9.764e-05,2]
[347492271,1735873852246,-500.0,9.764e-05,2]
[347492273,1735873852255,-500.0,9.764e-05,2]
[347492275,1735873852264,-1025.42,9.764e-05,2]
[347492277,1735873852273,-1434.8,9.764e-05,2]
[347492279,1735873852282,-500.0,9.764e-05,2]
[347492281,1735873852291,-500.0,9.764e-05,2]
[347492283,1735873852301,-500.0,9.764e-05,2]
[347492285,1735873852311,-500.0,9.764e-05,2]
[347492287,1735873852320,-500.0,9.764e-05,2]
[347492289,1735873852329,-500.0,9.764e-05,2]
[347492291,1735873852338,-982.93,9.764e-05,2]
[347492293,1735873852346,-629.61,9.764e-05,2]
[347492295,1735873852356,-500.0,9.764e-05,2]
[347492297,1735873852365,-585.86,9.764e-05,2]
[347492299,1735873852374,-500.0,9.764e-05,2]
[347492301,1735873852384,-500.0,9.764e-05,2]
[347492303,1735873852393,-500.0,9.764e-05,2]
[347492305,1735873852403,-500.0,9.764e-05,2]
[347492307,1735873852412,-739.64,9.764e-05,2]
[347492309,1735873852421,-500.0,9.764e-05,2]
[347492311,1735873852431,-673.74,9.764e-05,2]
[347492313,1735873852441,-500.0,9.764e-05,2]
[347492314,1735873852450,-696.27,9.764e-05,2]
[347492316,1735873852459,-500.0,9.764e-05,2]
[347492318,1735873852468,-500.0,9.764e-05,2]
[347492320,1735873852477,-500.0,9.764e-05,2]
[347492322,1735873852485,-500.0,9.764e-05,2]
[347492324,1735873852495,-500.0,9.764e-05,2]
[347492326,1735873852504,-500.0,9.764e-05,2]
[347492328,1735873852513,-500.0,9.764e-05,2]
[347492330,1735873852522,-500.0,9.764e-05,2]
[347492332,1735873852532,-500.0,9.764e-05,2]
[347492334,1735873852541,-500.0,9.764e-05,2]
[347492336,1735873852551,-500.0,9.764e-05,2]
[347492338,1735873852560,-500.0,9.764e-05,2]
[347492340,1735873852569,-500.0,9.764e-05,2]
[347492342,1735873852578,-500.0,9.764e-05,2]
[347492344,1735873852587,-500.0,9.764e-05,2]
[347492346,1735873852596,-566.57,9.764e-05,2]
[347492348,1735873852606,-500.0,9.764e-05,2]
[347492350,1735873852615,-1562.24,9.764e-05,2]
[347492352,1735873852624,-500.0,9.764e-05,2]
[347492354,1735873852633,-500.0,9.764e-05,2]
[347492356,1735873852642,-500.0,9.764e-05,2]
[347492358,1735873852651,-500.0,9.764e-05,2]
[347492360,1735873852661,-500.0,9.764e-05,2]
[347492362,1735873852670,-500.0,9.764e-05,2]
[347492364,1735873852679,-676.09,9.764e-05,2]
[347492366,1735873852687,-500.0,9.764e-05,2]
[347492368,1735873852697,-500.0,9.764e-05,2]
[347492370,1735873852706,-898.88,9.764e-05,2]
[347492372,1735873852715,-500.0,9.764e-05,2]
[347492374,1735873852724,-500.0,9.764e-05,2]
[347492376,1735873852733,-500.0,9.764e-05,2]
[347492378,1735873852742,-500.0,9.764e-05,2]
[347492380,1735873852751,-1276.88,9.764e-05,2]
[347492382,1735873852761,-500.0,9.764e-05,2]
[347492384,1735873852770,-500.0,9.764e-05,2]